Cogmind - Beta 14 @@@ ROGUE MODE // 2024.12.20 @ 18:45:12 Player: Electroid Result: Destroyed by G-47 Trooper with Particle Gun Performance ------------- Evolutions (0) 0 Regions Visited (1) 200 Robots Destroyed (9) 45 Value Destroyed (197) 197 Prototype IDs (0) 0 Alien Tech Used (0) 0 Bonus (0) 0 TOTAL SCORE: 442 Bonus ------- None Cogmind --------- Core Integrity 0/250 Matter 172/300 Energy 99/100 System Corruption 0% Temperature Cool (9) Movement Core (200) Ox3 Location -10/Materials Parts ------- > --- POWER (1) -------- (None) > --- PROPULSION (2) --- (None) > --- UTILITY (2) ------ Medium Storage Unit Weapon Shielding > --- WEAPON (2) ------- Light Assault Rifle > --- INVENTORY (10) --- Aluminum Leg Huge Storage Unit Medium Matter Pod (0) Medium Matter Pod (0) Core Shielding Weapon Shielding Tractor Beam Medium Laser Small Laser Datajack Peak State ------------ > --- POWER ------------ Light Ion Engine > --- PROPULSION ------- Compact Wheel Compact Wheel > --- UTILITY ---------- Medium Storage Unit Weapon Shielding > --- WEAPON ----------- Light Assault Rifle Datajack > --- INVENTORY -------- Aluminum Leg Huge Storage Unit Medium Matter Pod Medium Matter Pod Core Shielding Weapon Shielding Tractor Beam Medium Laser Small Laser Grenade Launcher [Rating: 8] Favorites ----------- Power Light Ion Engine Engine Light Ion Engine Propulsion Wheel Leg Aluminum Leg Wheel Wheel Utility Medium Storage Unit Storage Medium Storage Unit Protection Core Shielding Weapon EM Pulse Gun Energy Gun EM Pulse Gun Ballistic Gun Light Assault Rifle Launcher Grenade Launcher Special Melee Weapon Datajack Build | -11 -10 ------- Run | Yrd Mat Slots Evolved . | . . Power . | . . Propulsion . | . . Utility . | . . Weapon . | . . Parts Attached 20 | 7 13 Power 1 | 1 . Engine 1 | 1 . Core . | . . Reactor . | . . Propulsion 6 | 4 2 Treads . | . . Leg 2 | 2 . Wheel 4 | 2 2 Hover . | . . Flight . | . . Utility 4 | . 4 Device . | . . Storage 2 | . 2 Processor . | . . Hackware . | . . Protection 2 | . 2 Artifact . | . . Weapon 9 | 2 7 Energy Gun 5 | 2 3 Energy Cannon . | . . Ballistic Gun 1 | . 1 Ballistic Cannon . | . . Launcher 2 | . 2 Special Weapon . | . . Impact Weapon . | . . Slashing Weapon . | . . Piercing Weapon . | . . Special Melee Weapon 1 | . 1 Unidentified Prototypes . | . . Parts Lost 6 | . 6 Power 1 | . 1 Propulsion 3 | . 3 Utility . | . . Weapon 2 | . 2 Highest Loss Streak 4 | . 4 To Critical Strikes . | . . Average Slot Usage (%) 88 | . 88 Engine 13 | . 13 Wheel 23 | . 23 Storage 12 | . 12 Protection 12 | . 12 Energy Gun 10 | . 10 Ballistic Gun 4 | . 4 Launcher 5 | . 5 Special Melee Weapon 5 | . 5 Peak Build Rating 8 | 5 8 Average Rating 5 | 3 6 On Entrance 2 | . 5 Naked Turns . | . . Heaviest Build 89 | 7 89 Greatest Support 32 | 20 32 Greatest Overweight (x) 4 | . 4 Average Overweight (x) . | . . Largest Inventory Capacity 25 | 5 25 Average Capacity 10 | 5 11 Most Carried 10 | 4 10 Average Carried 5 | 2 6 Final Capacity 10 | 5 10 Final Carried 10 | 4 10 Class Distribution -------------------- 100% | Mutant Dominant Class ---------------- Mutant | -10/Materials Resources | -11 -10 ----------- Run | Yrd Mat Matter Collected 370 | 270 100 Remotely . | . . Salvage Created 181 | 53 128 Parts 12 | 2 10 Haulers Intercepted . | . . Recyclers Shooed . | . . Parts Field Recycled . | . . Retrieved Matter . | . . Parts Self-Destructed . | . . Prevented . | . . Kills | -11 -10 ------- Run | Yrd Mat Combat Hostiles Destroyed 6 | 1 5 Guns 3 | . 3 AOE 3 | 1 2 Classes Destroyed 5 | 2 3 Builder 1 | . 1 Tunneler 1 | 1 . Operator 1 | . 1 Swarmer 2 | . 2 Grunt 4 | 1 3 Best Kill Streak 5 | 2 5 Combat Bots Only 3 | 1 3 Max Kills in Single Turn 1 | 1 1 Gunslinging . | . . Exploded 1 | 1 1 Melee . | . . Uniques/NPCs Destroyed . | . . Combat | -11 -10 -------- Run | Yrd Mat Hostile Shots Fired 75 | 9 66 Missed 28 | 5 23 Damage Taken 663 | 44 619 Core 254 | 21 233 Absorbed by Shields . | . . Redirected to Shielding 31 | . 31 Core Remaining (%) 91 | 91 . Volleys Fired 62 | 10 52 Largest 2 | 1 2 Hottest 90 | 40 90 Shots Fired 74 | 10 64 Gun 64 | 10 54 Cannon . | . . Launcher 10 | . 10 Special . | . . Kinetic 28 | . 28 Thermal 15 | . 15 Explosive 10 | . 10 Electromagnetic 21 | 10 11 Robot Hit Streak 9 | 4 9 Robot Miss Streak 4 | 1 4 Penetration Max . | . . Secondary Targets . | . . Shots Hit Robots 47 | 7 40 Core Hits 16 | 3 13 Critical Kills . | . . Critical Parts Destroyed . | . . Critical Strikes 2 | . 2 Burn 2 | . 2 Melee Attacks 8 | . 8 Impact . | . . Slashing . | . . Piercing . | . . Sneak Attacks 3 | . 3 Combat Hostiles . | . . Follow-up Attacks . | . . Damage Inflicted 910 | 202 708 Guns 500 | 105 395 Cannons . | . . Explosions 410 | 97 313 Melee . | . . Ramming . | . . Kinetic 132 | . 132 Thermal 272 | 97 175 Explosive 313 | . 313 Electromagnetic 193 | 105 88 Impact . | . . Slashing . | . . Piercing . | . . Highest Corruption . | . . Average Corruption . | . . Corruption Purged . | . . Corruption Blocked . | . . Overload Shots . | . . Overflow Damage . | . . Projectiles . | . . Explosions . | . . Melee . | . . Knockbacks . | . . Impact . | . . Kinetic . | . . Secondary . | . . Self-Inflicted Damage 13 | . 13 Shots 1 | . 1 Rammed . | . . Targets Rammed . | . . Kicked . | . . Crushed . | . . Highest Temperature 160 | 24 160 Average Temperature 43 | 15 49 Received Heat Transfer 297 | 24 273 Siege Activations . | . . Robots Corrupted . | . . Combat Hostiles . | . . Parts Fried 1 | 1 . Impact Corruptions . | . . Robots Melted . | . . Combat Hostiles . | . . Parts Melted . | . . Heat Transferred 766 | 100 666 Parts Sabotaged . | . . Parts Stolen . | . . Parts Stripped . | . . Power Chain Reactions 2 | 2 . Alert | -11 -10 ------- Run | Yrd Mat Peak Influence 160 | 25 160 Initial 16 | . 16 Average 60 | 6 75 Maximum Alert Level . | . . Low Security (%) 100 | 100 100 Level 1 . | . . Level 2 . | . . Level 3 . | . . Level 4 . | . . Level 5 . | . . High Security . | . . Max Security . | . . Squads Dispatched . | . . Investigation . | . . Extermination . | . . Reinforcement . | . . Assault . | . . Garrison . | . . Intercept . | . . Searches Triggered . | . . Construction Impeded . | . . Haulers Reinforced . | . . Active Scanning Responses . | . . Cargo Convoy Interrupts . | . . Stealth | -11 -10 --------- Run | Yrd Mat Distress Signals . | . . Communications Jammed . | . . Distress Signals . | . . Times Spotted 10 | 1 9 Peak Tracking Total 3 | 1 3 Tactical Retreats . | . . Traps | -11 -10 ------- Run | Yrd Mat Traps Triggered 1 | . 1 Indirectly . | . . Trap Hack Attempts . | . . Triggered . | . . Disarmed . | . . Reprogrammed . | . . Reused . | . . Traps Extracted . | . . Installed . | . . Triggered . | . . Machines | -11 -10 ---------- Run | Yrd Mat Machines Disabled . | . . Max in Single Turn . | . . Machines Repaired . | . . Machines Dismantled . | . . Machines Sabotaged . | . . Overloaded Fab Kills . | . . Hacking | -11 -10 --------- Run | Yrd Mat Machines Accessed 1 | . 1 Terminals 1 | . 1 Fabricators . | . . Repair Stations . | . . Recycling Units . | . . Scanalyzers . | . . Garrison Access . | . . Total Hacks 2 | . 2 Successful 1 | . 1 Failed 1 | . 1 Catastrophic . | . . Database Lockouts . | . . Manual . | . . Terminals 2 | . 2 Fabricators . | . . Repair Stations . | . . Recycling Units . | . . Scanalyzers . | . . Garrison Access . | . . Terminal Hacks 1 | . 1 Locate Traps 1 | . 1 Fabricator Hacks . | . . Repair Station Hacks . | . . Recycling Unit Hacks . | . . Scanalyzer . | . . Garrison Access Hacks . | . . Unauthorized Hacks . | . . Terminals . | . . Fabricators . | . . Repair Stations . | . . Recycling Units . | . . Scanalyzers . | . . Garrison Access . | . . Data Cores Recovered . | . . Used . | . . Hacking Detections . | . . Full Trace Events . | . . Feedback Events . | . . Feedback Blocked . | . . Robot Schematics Acquired . | . . Robots Built . | . . Authchips . | . . Time . | . . Total Robot Build Rating . | . . Part Schematics Acquired . | . . Parts Built . | . . Authchips . | . . Time . | . . Total Part Build Rating . | . . Parts Repaired . | . . Time . | . . Parts Recycled . | . . Recycled Matter . | . . Retrieved Matter . | . . Retrieved Components . | . . Parts Scanalyzed . | . . Part Schematics Acquired . | . . Parts Damaged . | . . Bothacking | -11 -10 ------------ Run | Yrd Mat Used RIF Installer . | . . Robots Hacked 2 | . 2 Non-combat 2 | . 2 Combat . | . . Robot Hacks Applied 4 | . 4 parse_system 2 | . 2 no_distress 1 | . 1 find_recycling 1 | . 1 Relay Couplers Released . | . . Fabnet Peak Effective % . | . . Robots Rewired . | . . Allies Hacked . | . . Hacks Repelled . | . . Allies | -11 -10 -------- Run | Yrd Mat Total Allies . | . . Largest Group . | . . Highest-Rated Group . | . . Highest-Rated Ally . | . . Total Orders . | . . Ally Attacks . | . . Total Damage . | . . Kills . | . . Allies Corrupted . | . . Allies Melted . | . . Intel | -11 -10 ------- Run | Yrd Mat Robot Analysis Total . | . . Derelict Logs Recovered . | . . Drone Launches . | . . Drone Recoveries . | . . Exploration | -11 -10 ------------- Run | Yrd Mat Turns Passed 686 | 154 532 Spaces Moved 513 | 162 351 Core 59 | 58 1 Treads . | . . Legs 9 | 9 . Wheels 445 | 95 350 Hover . | . . Flight . | . . Fastest Speed 50 | 50 80 Average Speed 90 | 71 99 Slowest Speed 200 | 120 200 Overloaded Moves . | . . Propulsion Burnouts . | . . Robots Hopped . | . . Cave-ins Triggered . | . . Exploration Rate (%) 22 | 8 37 Regions Visited 1 Branch Regions . Pre-discovered Areas . | . . Known Exits Taken . | . . Unknown Exits Taken 1 | 1 . Scrap Searched . | . . Spaces Dug . | . . Terrain Destroyed 49 | 2 47 Melee . | . . Projectile . | . . AOE 49 | 2 47 Terrain Rammed . | . . Walls Destroyed . | . . Machines Disabled . | . . Actions | -11 -10 --------- Run | Yrd Mat Total 659 | 188 471 Wait 29 | 1 28 Move 512 | 161 351 Hop . | . . Pick Up 22 | 9 13 Fast Attach 2 | . 2 Attach 8 | 5 3 Detach 1 | . 1 Swap 10 | 2 8 Drop 5 | . 5 Fire 62 | 10 52 Melee 8 | . 8 Ram . | . . Kick . | . . Crush . | . . Escape Stasis . | . . Rewire . | . . Trap . | . . Miscellaneous . | . . Route ------- -11/Scrapyard -10/Materials (discovered 1 exit: [*Min]) History --------- Turn | Location | Event 2 | -11/Scrapyard | Met Revision 17 95 | -11/Scrapyard | Discovered new exit (range 8) 155 | -11/Scrapyard | Entered Materials 325 | -10/Materials | Build established: Mutant 492 | -10/Materials | Discovered new exit (range 8) 647 | -10/Materials | Core integrity fell below 50% 659 | -10/Materials | Core integrity fell below 20% 687 | -10/Materials | Destroyed by G-47 Trooper with Particle Gun Last Messages --------------- >>parse_system Reading system data... Acquired Tractor Beam. K-01 Serf cleans the Machine. U-05 Engineer destroyed. Critical hit (Burn: +37). Grenade Launcher destroyed. The unstable cave ceiling collapses. R-06 Scavenger collects Welding Torch. The unstable cave ceiling collapses. R-06 Scavenger collects Structural Scanner. G-34 Mercenary destroyed. R-06 Scavenger collects Wheel. Acquired 20 matter. R-06 Scavenger collects Sml. Laser. Lgt. Ion Engine destroyed. Com. Wheel destroyed. The unstable cave ceiling collapses. Com. Wheel destroyed. [Achievement: First Step to Greatness] Map ----- +----------------------------------------------------+ | ?????? ??????????????????????????????????????? | | ?????? ??????????????????????????????????????? | | ??????# #??????????????????????????????????????? | | ??????# #??????????????????????????????????????? | | ??????# #???#+#????????????????????????????????? | | ??????# #???# #????????????????????????????????? | | ??????# #???# #????????????????????????????????? | | ??????# #???# #????????????????????? ?????????? | | ??????# #???# #????????????????????? ??????????? | | ??????# #???# #????? ?????????? #??????????? | | ??????# #???# #???? #???????#/#??????????? | | ??????# #??## ###? #?????? ??????????? | | ####### #### # ##????? """ ?????????? | | ## # ???? """ #????????? | | ## # #???? """ #????????? | | ## # ???? +????????? | | "" # """ # ????/ | #????????? | | """ # """ ## ## # ???? ?????????? | | """ # """ # #### ""T""???????????? | | """ # / """""???????????? | | "" # ^ ###########???????????? | | # r ##############?????????? | | #+########### g%# #?????????? | | ^ # """ """ #?????????? | | ^ k ^ # """ """ #?????????? | | ! ^^ @; """ """ #?????????? | | !!^ ############# # #?????????? | | ############# #######+######?????????? | | !! # # """#??# #??????????????? | | !! # """ T # "#??# #??????????????? | | # """ # "#??# #??????????????? | | + """ # < ""####+##?????????????? | | # # "## #?????????????? | | #+######### ! # "## #?????????????? | | ????##### # """## #?????????????? | | ""????????############# #####!!! #?????????????? | | ""????????????????????# #???#!! #?????????????? | | ??????????????????????+ #???#!!! #?????????????? | | ??????????????????????# #???# #?????????????? | | ??????????????????????# #???# #?????????????? | | ??????????????????????# #???# #?????????????? | | ??????????????????????# ????###+##?????????????? | | ??????????????????????# ?????? ??????????????? | | ####??????????????????# ?????? ??????????????? | | #??????????????????# ??????? ??????????????? | | " #??????????????????# ??????####??????????????? | | " #?????????????????????????????????????????????? | | " #?????????????????????????????????????????????? | | #?????????????????????????????????????????????? | | #?????????????????????????????????????????????? | +----------------------------------------------------+ Best States ------------- Heat Dissipation 25 Energy Generation 10 Energy Capacity 125 Matter Stores 300 Matter Capacity 300 Sight Range 16 Terrain Scan Density 10 Core Shielding 20 Weapon Shielding 33 Evasion (%) 50 Item Schematics ----------------- None Robot Schematics ------------------ None Fabricated ------------ Nothing Alien Tech Used ----------------- None Achievements -------------- First Step to Greatness Challenges ------------ None Game ------ Seed GravitonAlloyMultitool Manual? 0 Play Time 00:32:00 Cumulative 0.4 hours Start 2024.12.20 @ 18:12:27 End 2024.12.20 @ 18:45:12 Sessions 1 Manual Loads 0 Difficulty Rogue Special Mode None Game No. 1 Rogue 1 Adventurer 0 Explorer 0 Win Type - Total 0 Types 0/0/0/0/0/0/0/0/0 Lore% 0 Gallery% 1 Achievement% 0 Wizard Run 0 Options --------- Layout 1 ASCII 0 Keyboard 0 Movement Mouse Keybinds 0 Fullscreen 2 Font 32/SmallcapsGlow Map View 50x35 Zoom Use 0% Tactical HUD 0 Map Filters NONE Filters NONE Steam 0 RUN: 8378614d-4ee3-44a1-ab7a-95346dd0ba18